fUSD/lending_fUSD_20250325
["ID","MTS","AMOUNT","RATE_DAILY","PERIOD"]
[356653969,1742919033876,-500.0,0.0002801,2]
[356653970,1742919033885,-500.0,0.0002801,2]
[356653971,1742919033895,-500.0,0.0002801,2]
[356653972,1742919033905,-500.0,0.0002801,2]
[356653973,1742919033914,-500.0,0.0002801,2]
[356653974,1742919033924,-500.0,0.0002801,2]
[356653975,1742919033934,-500.0,0.0002801,2]
[356653976,1742919033947,-500.0,0.0002801,2]
[356653977,1742919033958,-500.0,0.0002801,2]
[356653978,1742919033968,-500.0,0.0002801,2]
[356653979,1742919033978,-500.0,0.0002801,2]
[356653980,1742919033989,-500.0,0.0002801,2]
[356653981,1742919033998,-500.0,0.0002801,2]
[356653982,1742919034010,-500.0,0.0002801,2]
[356653983,1742919034020,-500.0,0.0002801,2]
[356653984,1742919034030,-500.0,0.0002801,2]
[356653985,1742919034041,-500.0,0.0002801,2]
[356653986,1742919034051,-500.0,0.0002801,2]
[356653987,1742919034061,-500.0,0.0002801,2]
[356653988,1742919034071,-500.0,0.0002801,2]
[356653989,1742919034081,-500.0,0.0002801,2]
[356653990,1742919034091,-500.0,0.0002801,2]
[356653991,1742919034101,-500.0,0.0002801,2]
[356653992,1742919034111,-500.0,0.0002801,2]
[356653993,1742919034121,-500.0,0.0002801,2]
[356653994,1742919034131,-500.0,0.0002801,2]
[356653995,1742919034140,-500.0,0.0002801,2]
[356653996,1742919034150,-500.0,0.0002801,2]
[356653997,1742919034159,-500.0,0.0002801,2]
[356653998,1742919034169,-500.0,0.0002801,2]
[356653999,1742919034179,-500.0,0.0002801,2]
[356654000,1742919034189,-500.0,0.0002801,2]
[356654001,1742919034200,-500.0,0.0002801,2]
[356654002,1742919034210,-500.0,0.0002801,2]
[356654003,1742919034220,-500.0,0.0002801,2]
[356654004,1742919034230,-500.0,0.0002801,2]
[356654005,1742919034241,-500.0,0.0002801,2]
[356654006,1742919034251,-500.0,0.0002801,2]
[356654007,1742919034260,-500.0,0.0002801,2]
[356654008,1742919034270,-500.0,0.0002801,2]
[356654009,1742919034280,-500.0,0.0002801,2]
[356654010,1742919034290,-500.0,0.0002801,2]
[356654011,1742919034300,-500.0,0.0002801,2]
[356654012,1742919034310,-500.0,0.0002801,2]
[356654013,1742919034319,-500.0,0.0002801,2]
[356654014,1742919034328,-500.0,0.0002801,2]
[356654015,1742919034338,-500.0,0.0002801,2]
[356654016,1742919034347,-500.0,0.0002801,2]
[356654017,1742919034356,-500.0,0.0002801,2]
[356654018,1742919034366,-500.0,0.0002801,2]
[356654019,1742919034375,-500.0,0.0002801,2]
[356654020,1742919034385,-500.0,0.0002801,2]
[356654021,1742919034394,-500.0,0.0002801,2]
[356654022,1742919034403,-500.0,0.0002801,2]
[356654023,1742919034412,-500.0,0.0002801,2]
[356654024,1742919034422,-500.0,0.0002801,2]
[356654025,1742919034431,-500.0,0.0002801,2]
[356654026,1742919034440,-500.0,0.0002801,2]
[356654027,1742919034450,-500.0,0.0002801,2]
[356654028,1742919034459,-500.0,0.0002801,2]
[356654029,1742919034468,-500.0,0.0002801,2]
[356654030,1742919034478,-500.0,0.0002801,2]
[356654031,1742919034487,-500.0,0.0002801,2]
[356654032,1742919034496,-500.0,0.0002801,2]
[356654033,1742919034506,-500.0,0.0002801,2]
[356654034,1742919034516,-500.0,0.0002801,2]
[356654035,1742919034526,-500.0,0.0002801,2]
[356654036,1742919034536,-500.0,0.0002801,2]
[356654037,1742919034547,-500.0,0.0002801,2]
[356654038,1742919034557,-500.0,0.0002801,2]
[356654039,1742919034566,-500.0,0.0002801,2]
[356654040,1742919034576,-500.0,0.0002801,2]
[356654041,1742919034587,-500.0,0.0002801,2]
[356654042,1742919034598,-500.0,0.0002801,2]
[356654043,1742919034607,-500.0,0.0002801,2]
[356654044,1742919034616,-500.0,0.0002801,2]
[356654045,1742919034627,-500.0,0.0002801,2]
[356654046,1742919034637,-500.0,0.0002801,2]
[356654047,1742919034646,-870.0,0.0002801,2]
[356654048,1742919034656,-500.0,0.0002801,2]
[356654049,1742919034666,-500.0,0.0002801,2]
[356654050,1742919034675,-500.0,0.0002801,2]
[356654051,1742919034685,-500.0,0.0002801,2]
[356654052,1742919034695,-500.0,0.0002801,2]
[356654053,1742919034705,-500.0,0.0002801,2]
[356654054,1742919034715,-500.0,0.0002801,2]
[356654055,1742919034725,-500.0,0.0002801,2]
[356654056,1742919034735,-500.0,0.0002801,2]
[356654057,1742919034745,-500.0,0.0002801,2]
[356654058,1742919034754,-500.0,0.0002801,2]
[356654059,1742919034764,-500.0,0.0002801,2]
[356654060,1742919034775,-500.0,0.0002801,2]
[356654061,1742919034785,-500.0,0.0002801,2]
[356654062,1742919034794,-500.0,0.0002801,2]
[356654063,1742919034804,-500.0,0.0002801,2]
[356654064,1742919034813,-500.0,0.0002801,2]
[356654065,1742919034823,-500.0,0.0002801,2]
[356654066,1742919034832,-500.0,0.0002801,2]
[356654067,1742919034844,-500.0,0.0002801,2]
[356654068,1742919034853,-500.0,0.0002801,2]
[356654069,1742919034862,-500.0,0.0002801,2]
[356654070,1742919034872,-500.0,0.0002801,2]
[356654071,1742919034882,-500.0,0.0002801,2]
[356654072,1742919034892,-500.0,0.0002801,2]
[356654073,1742919034902,-500.0,0.0002801,2]
[356654074,1742919034911,-500.0,0.0002801,2]
[356654075,1742919034921,-500.0,0.0002801,2]
[356654076,1742919034931,-500.0,0.0002801,2]
[356654077,1742919034940,-500.0,0.0002801,2]
[356654078,1742919034949,-500.0,0.0002801,2]
[356654079,1742919034959,-500.0,0.0002801,2]
[356654080,1742919034968,-500.0,0.0002801,2]
[356654081,1742919034981,-500.0,0.0002801,2]
[356654082,1742919034990,-500.0,0.0002801,2]
[356654083,1742919035000,-500.0,0.0002801,2]
[356654084,1742919035009,-500.0,0.0002801,2]
[356654085,1742919035018,-500.0,0.0002801,2]
[356654086,1742919035028,-500.0,0.0002801,2]
[356654087,1742919035037,-500.0,0.0002801,2]
[356654088,1742919035047,-500.0,0.0002801,2]
[356654089,1742919035056,-500.0,0.0002801,2]
[356654090,1742919035066,-500.0,0.0002801,2]
[356654091,1742919035075,-500.0,0.0002801,2]
[356654092,1742919035085,-500.0,0.0002801,2]
[356654093,1742919035094,-500.0,0.0002801,2]
[356654094,1742919035186,-500.0,0.0002801,2]
[356654095,1742919035196,-500.0,0.0002801,2]
[356654096,1742919035207,-500.0,0.0002801,2]
[356654097,1742919035216,-500.0,0.0002801,2]
[356654098,1742919035227,-500.0,0.0002801,2]
[356654099,1742919035237,-500.0,0.0002801,2]
[356654100,1742919035247,-500.0,0.0002801,2]
[356654101,1742919035257,-500.0,0.0002801,2]
[356654102,1742919035268,-500.0,0.0002801,2]
[356654103,1742919035278,-500.0,0.0002801,2]
[356654104,1742919035288,-500.0,0.0002801,2]
[356654105,1742919035297,-500.0,0.0002801,2]
[356654106,1742919035307,-500.0,0.0002801,2]
[356654107,1742919035317,-500.0,0.0002801,2]
[356654108,1742919035327,-500.0,0.0002801,2]
[356654109,1742919035336,-500.0,0.0002801,2]
[356654110,1742919035346,-500.0,0.0002801,2]
[356654111,1742919035356,-500.0,0.0002801,2]
[356654112,1742919035365,-500.0,0.0002801,2]
[356654113,1742919035376,-500.0,0.0002801,2]
[356654114,1742919035385,-500.0,0.0002801,2]
[356654115,1742919035394,-500.0,0.0002801,2]
[356654116,1742919035404,-500.0,0.0002801,2]
[356654117,1742919035413,-500.0,0.0002801,2]
[356654118,1742919035423,-500.0,0.0002801,2]
[356654119,1742919035434,-500.0,0.0002801,2]
[356654120,1742919035443,-500.0,0.0002801,2]
[356654121,1742919035452,-500.0,0.0002801,2]
[356654122,1742919035461,-500.0,0.0002801,2]
[356654123,1742919035471,-500.0,0.0002801,2]
[356654124,1742919035482,-500.0,0.0002801,2]
[356654125,1742919035491,-500.0,0.0002801,2]
[356654126,1742919035500,-500.0,0.0002801,2]
[356654127,1742919035510,-500.0,0.0002801,2]
[356654128,1742919035519,-500.0,0.0002801,2]
[356654129,1742919035529,-500.0,0.0002801,2]
[356654130,1742919035539,-500.0,0.0002801,2]
[356654131,1742919035551,-500.0,0.0002801,2]
[356654132,1742919035560,-500.0,0.0002801,2]
[356654133,1742919035570,-500.0,0.0002801,2]
[356654134,1742919035580,-500.0,0.0002801,2]
[356654135,1742919035591,-500.0,0.0002801,2]
[356654136,1742919035599,-500.0,0.0002801,2]
[356654137,1742919035608,-500.0,0.0002801,2]
[356654138,1742919035617,-500.0,0.0002801,2]
[356654139,1742919035628,-500.0,0.0002801,2]
[356654140,1742919035638,-500.0,0.0002801,2]
[356654141,1742919035647,-500.0,0.0002801,2]
[356654142,1742919035657,-500.0,0.0002801,2]
[356654143,1742919035668,-500.0,0.0002801,2]
[356654144,1742919035678,-500.0,0.0002801,2]
[356654145,1742919035687,-500.0,0.0002801,2]
[356654146,1742919035696,-500.0,0.0002801,2]
[356654147,1742919035705,-500.0,0.0002801,2]
[356654148,1742919035715,-500.0,0.0002801,2]
[356654149,1742919035724,-500.0,0.0002801,2]
[356654150,1742919035734,-500.0,0.0002801,2]
[356654151,1742919035745,-500.0,0.0002801,2]
[356654152,1742919035755,-500.0,0.0002801,2]
[356654153,1742919035764,-500.0,0.0002801,2]
[356654154,1742919035774,-500.0,0.0002801,2]
[356654155,1742919035785,-500.0,0.0002801,2]
[356654156,1742919035795,-500.0,0.0002801,2]
[356654157,1742919035804,-500.0,0.0002801,2]
[356654158,1742919035814,-500.0,0.0002801,2]
[356654159,1742919035823,-512.0,0.0002801,2]
[356654160,1742919035833,-500.0,0.0002801,30]
[356654161,1742919035844,-500.0,0.0002801,30]
[356654162,1742919035854,-500.0,0.0002801,30]
[356654163,1742919035864,-545.34320407,0.0002801,30]
[356654164,1742919035875,-250.34737557,0.00028073,5]
[356654165,1742919035884,-23900.0,0.00028451,2]
[356654166,1742919035894,-175.96,0.00028542,2]
[356654167,1742919035903,-7653.01,0.00028628,2]
[356654168,1742919035913,-1000.0,0.00028756,2]
[356654169,1742919035923,-205.37705864,0.000289,5]
[356654170,1742919035932,-189.15,0.00028992,2]
[356654171,1742919035942,-903.99,0.00029099,2]
[356654172,1742919035952,-187.46,0.00029116,2]
[356654173,1742919035962,-1306.66,0.00029684,2]
[356654174,1742919035971,-250.0,0.00029914,2]
[356654175,1742919035983,-1967.0,0.0003,2]
[356654176,1742919035993,-5000.0,0.0003,2]
[356654177,1742919036004,-5000.0,0.0003,2]
[356654178,1742919036014,-500.0,0.0003,2]
[356654179,1742919036024,-353.29196556,0.0003006,2]
[356654180,1742919036033,-205.37705864,0.00030111,5]
[356654181,1742919036043,-1500.0,0.00030118,2]
[356654182,1742919036052,-1885.44685815,0.00030131,2]
[356654183,1742919036061,-353.29196556,0.00030158,2]
[356654184,1742919036072,-497.71897,0.0003021,45]
[356654185,1742919036081,-180.15,0.00030451,30]
[356654186,1742919036092,-330.91,0.00030466,2]
[356654187,1742919036102,-302.28,0.00030483,120]
[356654188,1742919036111,-903.99,0.00030554,2]
[356654189,1742919036120,-795.1920724,0.00030778,4]
[356654190,1742919036130,-583.30619091,0.00031094,24]
[356654191,1742919036139,-2500.0,0.000311,2]
[356654192,1742919036149,-1655.404,0.00031194,28]
[356654193,1742919036159,-198.772,0.00031194,28]
[356654194,1742919036168,-212.0,0.000312,2]
[356654195,1742919036178,-2582.2092,0.000312,2]
[356654196,1742919036188,-1000.0,0.000312,2]
[356654197,1742919036199,-1000.0,0.000312,2]
[356654198,1742919036208,-20000.0,0.000313,3]
[356654199,1742919036218,-500.0,0.000313,2]
[356654200,1742919036228,-500.0,0.000313,2]
[356654201,1742919036237,-500.0,0.000313,2]
[356654202,1742919036247,-500.0,0.000313,2]
[356654203,1742919036256,-648.0,0.000313,2]
[356654204,1742919036266,-500.0,0.000313,2]
[356654205,1742919036275,-500.0,0.000313,2]
[356654206,1742919036285,-500.0,0.000313,2]
[356654207,1742919036295,-500.0,0.000313,2]
[356654208,1742919036304,-500.0,0.000313,2]
[356654209,1742919036314,-500.0,0.000313,2]
[356654210,1742919036323,-500.0,0.000313,2]
[356654211,1742919036333,-500.0,0.000313,2]
[356654212,1742919036342,-536.0,0.000313,2]
[356654213,1742919036351,-1000.0,0.000313,2]
[356654214,1742919036361,-205.37705864,0.00031321,6]
[356654215,1742919036370,-1000.0,0.000314,2]
[356654216,1742919036379,-150.0,0.00031467,2]
[356654217,1742919036388,-5093.17,0.0003148,2]
[356654218,1742919036398,-150.0,0.00031481,2]
[356654219,1742919036408,-6000.00000099,0.000315,2]
[356654220,1742919036417,-470.3923,0.000315,2]
[356654221,1742919036427,-1000.0,0.000315,2]
[356654222,1742919036436,-4084.6941,0.000315,2]
[356654223,1742919036446,-820.2518,0.000315,2]
[356654224,1742919036455,-500.0,0.0003151,2]
[356654225,1742919036465,-169.62511609,0.00031513,2]
[356654226,1742919036474,-17135.0168,0.00031528,2]
[356654227,1742919036484,-151.0,0.00031528,7]
[356654228,1742919036494,-263.700171,0.00031528,7]
[356654229,1742919036503,-225.237936,0.00031528,7]
[356654230,1742919036512,-225.237936,0.00031528,7]
[356654231,1742919036521,-157.121689,0.00031528,7]
[356654232,1742919036530,-151.0,0.00031528,7]
[356654233,1742919036539,-152.936775,0.00031528,7]
[356654234,1742919036552,-151.0,0.00031528,7]
[356654235,1742919036561,-151.0,0.00031528,7]
[356654236,1742919036570,-151.0,0.00031528,7]
[356654237,1742919036579,-151.0,0.00031528,7]
[356654238,1742919036590,-266.17421,0.00031528,7]
[356654239,1742919036599,-181.730961,0.00031528,7]
[356654240,1742919036608,-151.0,0.00031528,7]
[356654241,1742919036617,-151.0,0.00031528,7]
[356654242,1742919036627,-253.129082,0.00031528,7]
[356654243,1742919036636,-151.0,0.00031528,7]
[356654244,1742919036645,-151.0,0.00031528,7]
[356654245,1742919036656,-151.0,0.00031528,7]
[356654246,1742919036665,-151.494758,0.00031528,7]
[356654247,1742919036674,-151.66462,0.00031528,7]
[356654248,1742919036683,-151.0,0.00031528,7]
[356654249,1742919036692,-1646.492402,0.00031528,7]
[356654250,1742919036701,-1646.492402,0.00031528,7]
[356654251,1742919036712,-151.0,0.00031528,7]
[356654252,1742919036801,-151.0,0.00031528,7]
[356654253,1742919036811,-153.726914,0.00031528,7]
[356654254,1742919036820,-151.0,0.00031528,7]
[356654255,1742919036830,-151.0,0.00031528,7]
[356654256,1742919036839,-150.0,0.00031538,2]
[356654257,1742919036848,-151.0,0.000316,7]
[356654258,1742919036858,-151.0,0.000316,7]
[356654259,1742919036867,-151.0,0.000316,7]
[356654260,1742919036877,-151.0,0.000316,7]
[356654261,1742919036886,-253.946162,0.000316,7]
[356654262,1742919036896,-151.0,0.000316,7]
[356654263,1742919036905,-1000.0,0.000316,2]
[356654264,1742919036914,-151.0,0.000316,7]
[356654265,1742919036923,-151.0,0.000316,7]
[356654266,1742919036932,-151.0,0.00031607,7]
[356654267,1742919036941,-151.0,0.00031607,7]
[356654268,1742919036951,-151.0,0.00031607,7]
[356654269,1742919036961,-151.0,0.00031607,7]
[356654270,1742919036970,-151.0,0.00031607,7]
[356654271,1742919036981,-151.0,0.00031607,7]
[356654272,1742919036990,-151.0,0.00031607,7]
[356654273,1742919037000,-151.0,0.00031607,7]
[356654274,1742919037009,-151.0,0.00031607,7]
[356654275,1742919037019,-151.0,0.00031607,7]
[356654276,1742919037028,-151.0,0.00031607,7]
[356654277,1742919037038,-225.237936,0.00031607,7]
[356654278,1742919037047,-225.237936,0.00031607,7]
[356654279,1742919037057,-1207.22624274,0.00031607,4]
[356654280,1742919037067,-30876.1523,0.00031607,2]
[356654281,1742919037078,-165.71964388,0.00031613,30]
[356654282,1742919037088,-56544.76757288,0.00031614,2]
[356654283,1742919037097,-151.0,0.00031614,7]
[356654284,1742919037107,-151.0,0.00031614,7]
[356654285,1742919037117,-151.0,0.00031614,7]
[356654286,1742919037126,-1646.492402,0.00031614,7]
[356654287,1742919037136,-466.10567876,0.00031614,2]
[356654288,1742919037145,-1646.492402,0.00031614,7]
[356654289,1742919037154,-151.0,0.00031614,7]
[356654290,1742919037163,-151.0,0.00031614,7]
[356654291,1742919037173,-151.0,0.00031614,7]
[356654292,1742919037183,-151.0,0.00031614,7]
[356654293,1742919037192,-151.0,0.0003163,7]
[356654294,1742919037203,-501.29504108,0.00031673,5]
[356654295,1742919037212,-151.0,0.00031697,7]
[356654296,1742919037222,-151.0,0.00031697,7]
[356654297,1742919037232,-151.0,0.00031697,7]
[356654298,1742919037241,-225.237936,0.00031697,7]
[356654299,1742919037251,-225.237936,0.00031697,7]
[356654300,1742919037261,-151.0,0.00031697,7]
[356654301,1742919037270,-151.0,0.00031697,7]
[356654302,1742919037280,-151.0,0.00031697,7]
[356654303,1742919037290,-151.0,0.00031697,7]
[356654304,1742919037300,-151.0,0.00031697,7]
[356654305,1742919037311,-151.0,0.00031697,7]
[356654306,1742919037321,-151.0,0.00031697,7]
[356654307,1742919037331,-249.085241,0.00031697,7]
[356654308,1742919037340,-1000.0,0.000317,2]
[356654309,1742919037350,-22084.3361596,0.00031704,2]
[356654310,1742919037360,-151.0,0.00031707,7]
[356654311,1742919037370,-278.546419,0.00031707,7]
[356654312,1742919037380,-151.0,0.00031714,7]
[356654313,1742919037391,-151.0,0.00031714,7]
[356654314,1742919037400,-151.0,0.00031714,7]
[356654315,1742919037410,-151.0,0.00031714,7]
[356654316,1742919037420,-151.0,0.00031714,7]
[356654317,1742919037430,-151.0,0.00031714,7]
[356654318,1742919037439,-151.0,0.00031714,7]
[356654319,1742919037449,-151.0,0.00031714,7]
[356654320,1742919037459,-151.0,0.00031714,7]
[356654321,1742919037468,-151.0,0.00031714,7]
[356654322,1742919037478,-151.0,0.00031714,7]
[356654323,1742919037487,-225.237936,0.00031714,7]
[356654324,1742919037497,-225.237936,0.00031714,7]
[356654325,1742919037506,-151.0,0.00031714,7]
[356654326,1742919037516,-151.0,0.00031714,7]
[356654327,1742919037526,-151.0,0.00031714,7]
[356654328,1742919037536,-151.0,0.00031714,7]
[356654329,1742919037551,-151.0,0.00031714,7]
[356654330,1742919037561,-151.0,0.00031714,7]
[356654331,1742919037572,-151.0,0.00031714,7]
[356654332,1742919037583,-151.0,0.00031714,7]
[356654333,1742919037593,-151.0,0.00031714,7]
[356654334,1742919037604,-1646.492402,0.00031714,7]
[356654335,1742919037613,-1646.492402,0.00031714,7]
[356654336,1742919037625,-151.0,0.00031714,7]
[356654337,1742919037635,-151.0,0.00031714,7]
[356654338,1742919037646,-229.110934,0.00031714,7]
[356654339,1742919037656,-2000.0,0.00031714,30]
[356654340,1742919037665,-3455.33461099,0.00031714,2]
[356654341,1742919037687,-4148.31008543,0.00031714,2]
[356654342,1742919038060,-1360.21613656,0.00031714,2]
[356654343,1742919038072,-636.74800359,0.00031714,2]
[356654344,1742919038119,-2691.82590524,0.00031714,2]
[356654345,1742919038128,-31159.72646548,0.00031714,2]
[356654346,1742919038235,-552.6000004,0.00031714,2]
[356654351,1742919040247,-299.9249473,0.00031714,2]
[356654352,1742919040415,-2921.0786507,0.00031714,2]
[356654353,1742919040427,-729.89368915,0.00031714,2]
[356654354,1742919040582,-676.5517215,0.00031714,2]
[356654363,1742919043238,-84934.09574696,0.00031714,2]
[356654364,1742919043251,-1210.0,0.00031714,2]
[356654365,1742919043261,-699.09353839,0.00031714,2]
[356654366,1742919043274,-360.02871076,0.00031714,2]
[356654367,1742919043286,-346.21969938,0.00031714,2]
[356654368,1742919043295,-757.08639017,0.00031714,2]
[356654369,1742919043306,-1511.65583709,0.00031714,2]
[356654370,1742919043316,-1023.40596502,0.00031714,2]
[356654371,1742919043327,-2815.0770828,0.00031714,2]
[356654372,1742919043338,-750.0,0.00031714,2]
[356654373,1742919043347,-8673.0,0.00031714,7]
[356654374,1742919043357,-9624.2594927,0.00031724,2]
[356654375,1742919043367,-685.73370147,0.00031724,2]
[356654376,1742919043376,-3925.7959806,0.00031724,2]
[356654377,1742919043387,-280.74,0.00031725,120]
[356654378,1742919043396,-150.0,0.00031729,2]
[356654379,1742919043406,-2000.0,0.0003173,7]
[356654380,1742919043416,-2000.0,0.0003173,2]
[356654381,1742919043425,-2000.0,0.0003173,3]
[356654382,1742919043435,-150.0,0.0003173,2]
[356654383,1742919043445,-319.08739712,0.0003173,2]
[356654384,1742919043455,-300.00001131,0.0003173,30]
[356654385,1742919043466,-759.0,0.00031732,30]
[356654386,1742919043478,-168.75975,0.00031734,2]
[356654387,1742919043489,-22084.3361596,0.00031736,2]
[356654388,1742919043499,-151.0,0.00031746,7]
[356654389,1742919043509,-151.0,0.00031746,7]
[356654390,1742919043518,-164.730023,0.00031746,7]
[356654391,1742919043527,-151.0,0.00031746,7]
[356654392,1742919043536,-151.0,0.00031746,7]
[356654393,1742919043550,-151.0,0.00031746,7]
[356654394,1742919043560,-163.816945,0.00031746,7]
[356654395,1742919043569,-186.328876,0.00031746,7]
[356654396,1742919043579,-1646.492402,0.00031746,7]
[356654397,1742919043591,-1646.492402,0.00031746,7]
[356654398,1742919043601,-151.0,0.00031746,7]
[356654399,1742919043611,-151.0,0.00031746,7]
[356654400,1742919043623,-151.0,0.00031756,7]
[356654401,1742919043633,-151.0,0.00031756,7]
[356654402,1742919043643,-151.0,0.00031756,7]
[356654403,1742919043654,-151.0,0.00031756,7]
[356654404,1742919043663,-182.687947,0.00031756,7]
[356654405,1742919043673,-233.877398,0.00031756,7]
[356654406,1742919043683,-225.237936,0.00031756,7]
[356654407,1742919043692,-225.237936,0.00031756,7]
[356654408,1742919043702,-151.0,0.00031778,7]
[356654409,1742919043712,-151.0,0.00031778,7]
[356654410,1742919043722,-151.0,0.00031778,7]
[356654412,1742919043734,-151.0,0.00031778,7]
[356654413,1742919043743,-151.0,0.00031778,7]
[356654414,1742919043754,-356.0,0.0003193,2]
[356654415,1742919043763,-1306.66,0.00031948,2]
[356654416,1742919043776,-903.99,0.00032009,2]
[356654417,1742919043785,-1000.0,0.000321,2]
[356654418,1742919043795,-150.0,0.00032174,120]
[356654419,1742919043804,-1000.0,0.0003235,2]
[356654420,1742919043814,-1885.44685815,0.00032352,2]
[356654421,1742919043824,-153.17099,0.00032425,7]
[356654422,1742919043834,-205.37705864,0.00032532,6]
[356654423,1742919043843,-241.54,0.00032646,2]
[356654424,1742919043853,-326.49,0.00032646,2]
[356654425,1742919043864,-497.71897,0.0003271,51]
[356654426,1742919043873,-466.10567864,0.00032777,2]
[356654427,1742919043882,-253.33577126,0.000328,5]
[356654428,1742919043892,-314.6,0.00032877,2]
[356654429,1742919043903,-177.79657747,0.00032877,2]
[356654430,1742919043913,-200.0,0.00032906,120]
[356654432,1742919043923,-356.0,0.00033,2]
[356654434,1742919043933,-3207.13813087,0.00033158,2]
[356654436,1742919043943,-22084.3361596,0.00033397,2]
[356654438,1742919043952,-151.0,0.00033417,7]
[356654440,1742919043975,-151.0,0.00033417,7]
[356654442,1742919043985,-157.382864,0.00033417,7]
[356654443,1742919043995,-159.608537,0.00033417,7]
[356654444,1742919044005,-151.0,0.00033417,7]
[356654445,1742919044015,-151.0,0.00033417,7]
[356654446,1742919044025,-151.0,0.00033417,7]
[356654447,1742919044034,-151.0,0.00033417,7]
[356654448,1742919044044,-151.0,0.00033417,7]
[356654449,1742919044054,-225.237936,0.00033417,7]
[356654450,1742919044065,-225.237936,0.00033417,7]
[356654451,1742919044075,-151.0,0.00033417,7]
[356654452,1742919044086,-151.0,0.00033417,7]
[356654453,1742919044096,-151.0,0.00033417,7]
[356654454,1742919044105,-254.946531,0.00033417,7]
[356654455,1742919044115,-151.0,0.00033417,7]
[356654456,1742919044124,-1646.492402,0.00033423,7]
[356654457,1742919044134,-1646.492402,0.00033423,7]
[356654458,1742919044145,-151.0,0.00033423,7]
[356654459,1742919044154,-151.0,0.00033423,7]
[356654460,1742919044164,-56544.76757282,0.00033423,2]
[356654461,1742919044173,-151.0,0.00033449,7]
[356654462,1742919044183,-903.99,0.00033464,2]
[356654463,1742919044192,-22084.3361596,0.0003347,2]
[356654464,1742919044201,-225.237936,0.0003348,7]
[356654465,1742919044211,-225.237936,0.0003348,7]
[356654466,1742919044221,-224.0,0.000335,31]
[356654467,1742919044312,-224.0,0.000335,31]
[356654468,1742919044322,-224.0,0.000335,31]
[356654469,1742919044332,-224.0,0.000335,31]
[356654470,1742919044341,-224.0,0.000335,31]
[356654471,1742919044351,-224.0,0.000335,31]
[356654472,1742919044360,-224.0,0.000335,31]
[356654473,1742919044370,-224.0,0.000335,31]
[356654474,1742919044380,-224.0,0.000335,31]
[356654475,1742919044391,-224.0,0.000335,31]
[356654476,1742919044401,-224.0,0.000335,31]
[356654477,1742919044410,-224.0,0.000335,31]
[356654478,1742919044420,-314.6,0.00033534,2]
[356654479,1742919044429,-205.37705864,0.00033742,6]
[356654480,1742919044439,-466.10567864,0.0003394,2]
[356654481,1742919044449,-356.0,0.0003407,2]
[356654482,1742919044459,-314.6,0.00034192,2]
[356654483,1742919044468,-1306.66,0.00034212,2]
[356654484,1742919044478,-302.28,0.00034293,120]
[356654485,1742919044489,-150.0,0.00034548,10]
[356654486,1742919044498,-1885.44685815,0.00034573,2]
[356654487,1742919044507,-500.0,0.00034714,30]